bitfinex-derivatives/quotes_SOLF0:USTF0_20241127
["timestamp","ask_amount","ask_price","bid_price","bid_amount"]
[1732679322947,2.12,231.65,231.54,10.75949141]
[1732679324151,2.12,231.65,231.55,2.16]
[1732679324645,2.1594,231.62,231.55,2.16]
[1732679324846,2.12,231.65,231.55,2.16]
[1732679325150,2.1594,231.62,231.55,2.16]
[1732679325346,2.1594,231.62,231.56,2.16]
[1732679325552,26.09481829,231.74,231.6,10.75949141]
[1732679325748,10.27494599,231.73,231.6,10.75949141]
[1732679325950,21.0344374,231.73,231.59,2.12]
[1732679326140,10.27494599,231.72,231.59,2.12]
[1732679326750,2.1591,231.66,231.59,2.12]
[1732679327349,2.1591,231.65,231.59,2.12]
[1732679327549,2.12,231.66,231.52,2.12]
[1732679327750,2.12,231.65,231.52,12.87949141]
[1732679328446,2.1594,231.63,231.56,2.16]
[1732679328749,2.12,231.69,231.57,2.12]
[1732679328953,2.12,231.69,231.58,10.75949141]
[1732679329251,2.159,231.66,231.6,2.1596]
[1732679330249,2.1591,231.65,231.58,10.75949141]
[1732679330545,2.12,231.69,231.56,2.12]
[1732679330753,2.12,231.69,231.56,4.28]
[1732679330951,2.12,231.69,231.56,2.12]
[1732679331252,2.1595,231.61,231.55,12.91949141]
[1732679331451,2.12,231.69,231.55,15.03949141]
[1732679331647,10.2610391,231.68,231.55,15.03949141]
[1732679331954,2.1592,231.65,231.55,15.03949141]
[1732679332150,2.12,231.69,231.56,2.16]
[1732679332547,2.1593,231.63,231.55,10.75949141]
[1732679332750,2.12,231.64,231.52,12.87949141]
[1732679332959,2.12,231.65,231.49,12.02809141]
[1732679333260,10.75949141,231.64,231.5,2.12]
[1732679333554,2.12,231.65,231.55,10.75949141]
[1732679334150,2.12,231.65,231.55,12.87949141]
[1732679334759,2.12,231.65,231.59,2.1597]
[1732679334953,2.12,231.65,231.55,12.87949141]
[1732679335147,10.75949141,231.71,231.58,2.1598]
[1732679335148,2.12,231.69,231.58,2.1598]
[1732679335349,21.01518747,231.68,231.55,10.75949141]
[1732679335550,10.25569606,231.67,231.55,10.75949141]
[1732679336151,2.1594,231.63,231.55,12.91959141]
[1732679336555,10.75949141,231.68,231.55,10.75949141]
[1732679336761,2.1593,231.64,231.56,2.16]
[1732679336959,10.75949141,231.68,231.56,2.16]
[1732679337255,10.25410496,231.67,231.55,10.75949141]
[1732679337459,2.1594,231.62,231.55,12.91949141]
[1732679338259,10.75949141,231.68,231.55,10.75949141]
[1732679338460,2.1593,231.64,231.58,2.1597]
[1732679338656,10.75949141,231.68,231.54,2.12]
[1732679339361,2.1595,231.61,231.55,2.16]
[1732679340560,10.75949141,231.68,231.55,12.91949141]
[1732679340561,2.1596,231.6,231.55,12.91949141]
[1732679341156,2.1596,231.6,231.55,10.75949141]
[1732679341358,2.1596,231.6,231.56,2.16]
[1732679341758,2.12,231.64,231.49,1.2686]
[1732679341966,2.12,231.64,231.5,12.87949141]
[1732679342354,3.3904,231.64,231.5,2.12]
[1732679342656,3.3904,231.64,231.53,10.75949141]
[1732679342853,2.1595,231.62,231.53,10.75949141]
[1732679343052,2.1595,231.62,231.57,2.1599]
[1732679343260,2.12,231.66,231.56,10.75949141]
[1732679343462,2.1591,231.66,231.59,10.75949141]
[1732679343662,2.12,231.7,231.59,10.75949141]
[1732679343856,2.12,231.72,231.55,2.12]
[1732679344164,10.25033347,231.71,231.65,2.1591]
[1732679344359,2.12,231.72,231.65,2.1591]
[1732679344563,2.12,231.72,231.62,10.75949141]
[1732679344762,2.12,231.72,231.61,2.12]
[1732679344960,10.2473559,231.71,231.59,12.87949141]
[1732679346259,2.1589,231.68,231.6,2.1595]
[1732679346457,2.12,231.72,231.62,10.75949141]
[1732679346959,12.87949141,231.72,231.59,2.12]
[1732679347160,10.24096002,231.71,231.59,2.12]
[1732679347359,2.159,231.67,231.6,2.1596]
[1732679347664,12.87949141,231.72,231.59,2.12]
[1732679348061,2.1587,231.7,231.6,10.75949141]
[1732679348359,10.75949141,231.75,231.59,2.12]
[1732679348360,2.12,231.75,231.63,10.75949141]
[1732679348659,2.1584,231.73,231.67,2.1589]
[1732679348865,2.1584,231.73,231.64,2.12]
[1732679349159,2.5188,231.8,231.64,2.12]
[1732679349160,2.5188,231.8,231.7,2.1586]
[1732679349355,10.24353877,231.79,231.7,2.12]
[1732679349555,2.5188,231.8,231.7,2.12]
[1732679349765,2.1581,231.77,231.7,2.12]
[1732679349966,2.5188,231.8,231.7,2.12]
[1732679350759,2.1576,231.82,231.72,10.75949141]
[1732679350961,2.12,231.84,231.72,10.75949141]
[1732679351264,10.24254189,231.83,231.72,10.75949141]
[1732679351465,2.1574,231.85,231.72,10.75949141]
[1732679351660,2.1574,231.85,231.75,10.75949141]
[1732679351661,10.24092951,231.84,231.75,10.75949141]
[1732679351861,2.12,231.86,231.76,2.12]
[1732679352058,2.12,231.86,231.72,10.75949141]
[1732679352059,2.1577,231.81,231.74,2.12]
[1732679352262,2.12,231.86,231.74,2.12]
[1732679352458,10.24040169,231.85,231.74,2.12]
[1732679352664,2.1577,231.81,231.74,2.12]
[1732679352869,2.12,231.86,231.74,2.12]
[1732679353167,2.12,231.86,231.67,1.3292]
[1732679353168,10.75949141,231.84,231.73,2.12]
[1732679353365,10.75949141,231.84,231.72,2.12]
[1732679353565,10.75949141,231.84,231.7,2.12]
[1732679353760,10.24448805,231.83,231.47,24.02169442]
[1732679353966,10.75949141,231.75,231.64,2.1592]
[1732679354161,12.87949141,231.75,231.6,10.75949141]
[1732679354363,2.5366,231.74,231.6,10.75949141]
[1732679355166,2.1587,231.7,231.63,2.1593]
[1732679355365,2.5366,231.74,231.6,10.75949141]
[1732679355566,10.75949141,231.72,231.59,3.7906]
[1732679355768,2.1595,231.62,231.52,2.1603]
[1732679355968,2.12,231.61,231.49,10.75949141]
[1732679356169,2.12,231.6,231.49,10.75949141]
[1732679356362,2.12,231.6,231.47,1.2944]
[1732679356363,2.12,231.65,231.55,10.75949141]
[1732679356764,10.75949141,231.72,231.58,10.75949141]
[1732679357074,10.2572706,231.71,231.61,10.75949141]
[1732679357268,10.2572706,231.7,231.61,10.75949141]
[1732679357971,2.12,231.71,231.61,10.75949141]
[1732679358165,10.26799861,231.7,231.61,10.75949141]
[1732679358469,2.1588,231.69,231.61,10.75949141]
[1732679358670,2.12,231.71,231.61,10.75949141]
[1732679359469,10.27136212,231.7,231.61,10.75949141]
[1732679359667,2.12,231.71,231.61,10.75949141]
[1732679359668,2.12,231.71,231.61,12.01709141]
[1732679360267,10.27170636,231.7,231.61,12.01709141]
[1732679360867,2.1589,231.68,231.61,1.2576]
[1732679361165,2.12,231.71,231.61,1.2576]
[1732679361369,2.1592,231.64,231.56,3.4231]
[1732679361669,2.12,231.71,231.56,1.2632]
[1732679361867,10.27392887,231.7,231.56,1.2632]
[1732679362273,10.27392887,231.7,231.58,2.1597]
[1732679362565,10.27392887,231.7,231.58,10.75949141]
[1732679362780,2.1591,231.66,231.6,2.1595]
[1732679362976,2.12,231.71,231.58,10.75949141]
[1732679363268,2.1591,231.66,231.6,2.1596]
[1732679363473,2.12,231.71,231.58,10.75949141]
[1732679363874,2.159,231.67,231.59,2.1596]
[1732679364178,2.159,231.67,231.56,1.2632]
[1732679364179,2.12,231.71,231.56,1.2632]
[1732679364475,10.2783532,231.7,231.58,2.1598]
[1732679364676,2.12,231.71,231.57,10.75949141]
[1732679364878,10.278426,231.7,231.57,10.75949141]
[1732679365069,10.278426,231.7,231.58,2.1598]
[1732679365477,2.159,231.67,231.57,10.75949141]
[1732679365672,2.14,231.66,231.57,10.75949141]
[1732679365879,2.14,231.66,231.56,3.4231]
[1732679365880,2.14,231.66,231.54,12.89949141]
[1732679366079,12.89949141,231.66,231.54,12.89949141]
[1732679366371,2.1593,231.64,231.56,2.16]
[1732679366576,12.89949141,231.66,231.56,2.16]
[1732679367279,2.1594,231.63,231.56,2.16]
[1732679368569,12.89949141,231.66,231.56,2.16]
[1732679368775,2.1594,231.62,231.56,2.16]
[1732679370671,12.89949141,231.66,231.52,1.2518]
[1732679371581,2.14,231.66,231.55,2.16]
[1732679372476,10.75949141,231.72,231.57,10.75949141]
[1732679372682,12.41995986,231.71,231.57,10.75949141]
[1732679372982,10.27995986,231.7,231.57,10.75949141]
[1732679373481,10.27995986,231.7,231.6,10.75949141]
[1732679373680,2.14,231.69,231.6,10.75949141]
[1732679373979,2.1587,231.7,231.6,10.75949141]
[1732679374478,2.14,231.71,231.6,10.75949141]
[1732679376378,2.1588,231.69,231.64,2.1592]
[1732679377384,2.1588,231.69,231.6,10.75949141]
[1732679377385,2.1586,231.71,231.67,2.1589]
[1732679377878,2.1584,231.73,231.67,2.1589]
[1732679378079,2.14,231.77,231.63,10.75949141]
[1732679378280,10.28811638,231.76,231.63,10.75949141]
[1732679379582,2.1585,231.73,231.65,2.1591]
[1732679379786,10.75949141,231.78,231.65,2.1591]
[1732679379787,2.14,231.72,231.65,2.1591]
[1732679379984,2.14,231.72,231.63,10.75949141]
[1732679380285,2.14,231.72,231.65,2.1591]
[1732679380489,2.14,231.72,231.63,10.75949141]
[1732679381382,2.14,231.72,231.67,2.1589]
[1732679381586,1.2351,231.79,231.66,10.75949141]
[1732679381788,10.2874416,231.8,231.69,10.75949141]
[1732679381986,2.14,231.79,231.69,10.75949141]
[1732679382183,2.158,231.78,231.72,2.1584]
[1732679382390,2.158,231.78,231.69,10.75949141]
[1732679383088,2.1578,231.79,231.74,2.1583]
[1732679383293,2.1578,231.79,231.69,10.75949141]
[1732679383687,2.14,231.8,231.72,10.75949141]
[1732679383991,11.98439141,231.87,231.75,10.75949141]
[1732679383992,2.14,231.84,231.75,10.75949141]
[1732679384191,10.28982046,231.83,231.79,2.1578]
[1732679384488,4.2974,231.84,231.79,2.1578]
[1732679384688,2.14,231.84,231.75,10.75949141]
[1732679384889,2.14,231.84,231.73,2.14]
[1732679385592,10.28145209,231.83,231.73,2.14]
[1732679386091,10.28145209,231.83,231.75,10.75949141]
[1732679386286,2.14,231.88,231.78,10.75949141]
[1732679386486,2.1572,231.86,231.8,2.1577]
[1732679386686,10.27807266,231.85,231.78,10.75949141]
[1732679386891,2.14,231.89,231.81,10.75949141]
[1732679387093,12.43646351,231.88,231.82,2.1575]
[1732679387393,10.27946351,231.87,231.82,2.1575]
[1732679387796,12.43656351,231.87,231.82,2.1575]
[1732679387984,2.14,231.89,231.8,2.1577]
[1732679388185,10.27434075,231.88,231.79,2.14]
[1732679388494,10.27434075,231.88,231.75,12.89949141]
[1732679388691,2.1574,231.85,231.78,2.1578]
[1732679388890,2.14,231.89,231.75,12.89949141]
[1732679389098,10.75949141,231.87,231.75,2.14]
[1732679389290,10.75949141,231.87,231.75,4.2981]
[1732679389291,2.1577,231.81,231.75,4.2981]
[1732679389791,10.75949141,231.84,231.73,2.6004]
[1732679389994,12.89949141,231.84,231.74,2.1583]
[1732679390392,2.14,231.84,231.74,2.1583]
[1732679390589,2.14,231.84,231.74,10.75949141]
[1732679391392,2.1574,231.84,231.79,2.1577]
[1732679391995,2.16,231.88,231.8,2.1577]
[1732679392397,2.16,231.88,231.77,12.91949141]
[1732679392398,2.16,231.89,231.77,12.91949141]
[1732679392789,12.91949141,231.89,231.73,4.7604]
[1732679392988,12.91949141,231.89,231.73,15.51989141]
[1732679393524,12.91949141,231.89,231.74,2.12311127]
[1732679393714,10.75949141,231.86,231.73,4.7604]
[1732679393915,2.1577,231.81,231.76,2.1581]
[1732679398825,2.16,231.84,231.72,1.3005]
[1732679399619,2.158,231.77,231.72,3.4589]
[1732679400532,2.16,231.84,231.72,1.3005]
[1732679401235,2.16,231.84,231.74,10.75949141]
[1732679402330,2.16,231.84,231.77,2.158]
[1732679402526,2.16,231.84,231.74,10.75949141]
[1732679402835,2.16,231.84,231.71,10.75949141]
[1732679402836,10.75949141,231.83,231.71,10.75949141]
[1732679403724,1.3002,231.82,231.71,10.75949141]
[1732679405417,1.3002,231.82,231.74,10.75949141]
[1732679405910,2.16,231.84,231.74,10.75949141]
[1732679406105,1.2282,231.85,231.74,10.75949141]
[1732679406300,3.3882,231.85,231.74,10.75949141]
[1732679406706,2.1577,231.81,231.74,10.75949141]
[1732679407004,3.3882,231.85,231.74,10.75949141]
[1732679407306,2.1577,231.81,231.75,2.1582]
[1732679407606,3.3882,231.85,231.75,2.1582]
[1732679408398,2.1576,231.82,231.74,10.75949141]
[1732679409108,2.1576,231.81,231.76,2.1581]
[1732679410503,2.1578,231.8,231.76,2.1581]
[1732679411104,2.16,231.85,231.74,10.75949141]
[1732679411306,1.3002,231.88,231.77,10.75949141]
[1732679411511,2.16,231.89,231.8,10.75949141]
[1732679411811,2.16,231.89,231.82,2.1575]
[1732679411812,2.1572,231.87,231.82,2.1575]
[1732679412004,2.1572,231.87,231.8,10.75949141]
[1732679412005,2.16,231.89,231.8,10.75949141]
[1732679412407,3.4046,231.91,231.8,10.75949141]
[1732679412807,2.157,231.88,231.83,2.1575]
[1732679414115,3.4046,231.91,231.8,10.75949141]
[1732679414312,2.16,231.94,231.83,10.75949141]
[1732679415103,2.16,231.94,231.86,2.1572]
[1732679415409,2.16,231.94,231.83,10.75949141]
[1732679416108,2.1568,231.9,231.85,2.1572]
[1732679417711,2.1565,231.93,231.88,2.157]
[1732679417912,3.4788,231.96,231.88,2.157]
[1732679419213,2.1566,231.93,231.88,2.157]
[1732679419911,2.1564,231.95,231.89,2.1569]
[1732679420310,1.3188,231.96,231.86,10.75949141]
[1732679420609,1.3188,231.96,231.91,2.1567]
[1732679420813,2.12,231.97,231.91,2.1567]
[1732679421113,2.12,231.98,231.91,2.1567]
[1732679422010,2.12,231.98,231.86,10.75949141]
[1732679422209,2.1563,231.96,231.9,2.1568]
[1732679422515,2.12,232.0,231.89,10.75949141]
[1732679422714,2.1561,231.99,231.93,2.1565]
[1732679423513,2.1562,231.97,231.91,2.1566]
[1732679423716,2.12,232.0,231.91,2.1566]
[1732679424115,2.1562,231.97,231.89,12.87949141]
[1732679424418,2.1562,231.97,231.92,2.1566]
[1732679425209,12.87949141,232.0,231.89,2.1569]
[1732679426217,12.87949141,232.0,231.9,2.1568]
[1732679426615,2.1563,231.96,231.9,2.1568]
[1732679427016,12.87949141,232.0,231.9,2.1568]
[1732679427421,2.1565,231.93,231.88,2.157]
[1732679427718,12.87949141,232.0,231.86,10.75949141]
[1732679427909,10.75949141,232.0,231.86,10.75949141]
[1732679428115,2.1564,231.94,231.9,2.1568]
[1732679428314,2.12,231.99,231.86,12.96840775]
[1732679428618,2.12,232.0,231.89,10.75949141]
[1732679428820,2.1562,231.97,231.93,2.1565]
[1732679429016,2.12,232.0,231.89,10.75949141]
[1732679429819,2.1563,231.96,231.91,2.1567]
[1732679430016,2.12,232.0,231.86,10.75949141]
[1732679430415,2.1565,231.93,231.86,10.75949141]
[1732679431016,1.2642,231.99,231.86,10.75949141]
[1732679431017,2.1565,231.94,231.89,2.1568]
[1732679431315,1.2642,231.99,231.86,10.75949141]
[1732679431522,2.1565,231.94,231.89,2.1569]
[1732679432227,1.2642,231.99,231.86,10.75949141]
[1732679432520,2.1566,231.93,231.86,10.75949141]
[1732679432717,1.2642,231.99,231.86,12.93859975]
[1732679433123,1.2642,231.99,231.89,10.75949141]
[1732679433422,2.1562,231.97,231.93,2.1565]
[1732679433620,2.4722,232.06,231.89,10.75949141]
[1732679433621,2.12,232.01,231.89,10.75949141]
[1732679433821,2.12,232.02,231.9,2.12]
[1732679434021,2.1561,231.99,231.95,2.1563]
[1732679434222,1.2148,232.05,231.92,10.75949141]
[1732679434522,2.12,232.04,231.92,10.75949141]
[1732679434927,2.1558,232.01,231.96,2.1562]
[1732679435222,2.12,232.04,231.92,10.75949141]
[1732679436218,2.1559,232.0,231.96,2.1562]
[1732679436517,2.12,232.04,231.96,2.1562]
[1732679437120,1.2148,232.05,231.91,2.12]
[1732679437121,2.1557,232.03,231.98,2.1561]
[1732679437321,2.1557,232.03,231.95,10.75949141]
[1732679438124,1.2564,232.06,231.95,10.75949141]
[1732679438320,1.2074,232.11,231.9,2.12374093]
[1732679438321,2.12,232.08,231.98,10.75949141]
[1732679438624,2.1554,232.06,232.02,2.1557]
[1732679439219,4.2752,232.08,232.02,2.1557]
[1732679439420,2.12,232.08,232.02,2.1557]
[1732679439621,1.2074,232.11,232.02,2.1557]
[1732679439622,3.3274,232.11,232.02,2.1557]
[1732679440420,1.2074,232.11,232.03,2.1556]
[1732679440817,2.1552,232.08,232.03,2.1556]
[1732679442320,8.06035017,232.11,232.03,6.85295017]
[1732679442624,2.1552,232.07,232.01,2.1557]
[1732679442919,2.1552,232.07,232.02,6.85295017]
[1732679443317,6.85295017,232.09,231.97,1.2165]
[1732679443521,6.85295017,232.05,231.97,1.2165]
[1732679443824,6.85295017,232.05,231.97,6.85295017]
[1732679444227,2.12,232.07,231.97,6.85295017]
[1732679444430,2.12,232.07,231.96,2.1562]
[1732679445126,2.12,232.07,231.97,2.1562]
[1732679445127,2.1558,232.02,231.97,2.1562]
[1732679445631,2.1558,232.01,231.97,2.1562]
[1732679446227,2.1558,232.01,231.94,2.12]
[1732679446426,2.1558,232.01,231.96,2.1562]
[1732679447323,2.1558,232.01,231.94,2.12]
[1732679448325,2.1558,232.01,231.96,2.1562]
[1732679450029,2.1563,231.96,231.86,1.3149]
[1732679450228,2.1563,231.96,231.88,10.71390939]
[1732679453033,2.1563,231.96,231.91,2.1567]
[1732679458030,2.1563,231.96,231.88,10.71390939]
[1732679458237,2.1563,231.96,231.92,2.1566]
[1732679462744,2.1564,231.94,231.91,2.1567]
[1732679463037,2.12,232.0,231.88,10.71390939]
[1732679463240,12.51896612,231.99,231.88,10.71390939]
[1732679463441,2.1566,231.93,231.89,2.1569]
[1732679463637,2.1566,231.93,231.77,2.403191]
[1732679463638,2.12,231.95,231.78,2.403191]
[1732679463837,9.97099123,231.94,231.82,10.71390939]
[1732679464038,2.1572,231.87,231.82,10.71390939]
[1732679464233,2.12,231.95,231.85,10.71390939]
[1732679464437,2.12,231.95,231.78,1.2655]
[1732679464438,2.12,231.95,231.9,6.8609813]
[1732679464635,2.1565,231.94,231.92,6.8609813]
[1732679465942,4.2764,231.95,231.92,6.8609813]
[1732679466339,2.1564,231.95,231.92,6.8609813]
[1732679467142,4.6682,231.99,231.92,6.8609813]
[1732679467445,6.8609813,231.97,231.88,6.8609813]
[1732679467640,21.58937675,231.96,231.88,6.8609813]
[1732679467845,28.45035805,231.95,231.88,6.8609813]
[1732679468144,6.8609813,231.93,231.84,6.8609813]
[1732679468345,6.8609813,231.93,231.67,33.66]
[1732679468346,6.8609813,231.89,231.82,6.8609813]
[1732679468547,2.12,231.88,231.8,6.8609813]
[1732679468740,2.1574,231.84,231.8,6.8609813]
[1732679468942,2.12,231.88,231.8,6.8609813]
[1732679469543,2.1573,231.85,231.82,6.8609813]
[1732679470337,4.5601,231.91,231.84,6.8609813]
[1732679470542,4.5601,231.91,231.87,6.8609813]
[1732679471238,4.5601,231.91,231.85,6.8609813]
[1732679471643,6.7169,231.91,231.85,6.8609813]
[1732679472348,2.1568,231.9,231.85,9.0181813]
[1732679473143,4.5601,231.91,231.85,6.8609813]
[1732679473360,2.1569,231.89,231.85,6.8609813]
[1732679473941,4.5601,231.91,231.85,6.8609813]
[1732679475042,4.5601,231.91,231.76,1.3312]
[1732679475043,6.8609813,231.89,231.76,1.3312]
[1732679475249,6.8609813,231.87,231.8,6.8609813]
[1732679475749,2.1576,231.82,231.8,6.8609813]
[1732679475951,6.8609813,231.87,231.8,6.8609813]
[1732679476247,2.1575,231.84,231.8,6.8609813]
[1732679477253,2.1575,231.83,231.8,6.8609813]
[1732679477852,2.1572,231.86,231.82,6.8609813]
[1732679478154,6.8609813,231.88,231.8,6.8609813]
[1732679479055,2.1576,231.82,231.76,2.1581]
[1732679479356,8.9809813,231.86,231.78,6.8609813]
[1732679479554,2.12,231.85,231.78,6.8609813]
[1732679480556,2.1578,231.8,231.78,6.8609813]
[1732679480754,2.12,231.85,231.78,6.8609813]
[1732679481250,2.1576,231.82,231.78,6.8609813]
[1732679482262,2.1577,231.8,231.78,6.8609813]
[1732679482454,2.12,231.85,231.78,6.8609813]
[1732679483249,2.1577,231.81,231.78,6.8609813]
[1732679483445,2.12,231.85,231.8,6.8609813]
[1732679484256,2.12,231.85,231.74,1.3254]
[1732679484257,2.12,231.87,231.82,6.8609813]
[1732679485051,2.1573,231.85,231.82,6.8609813]
[1732679489055,2.1573,231.85,231.8,9.0186813]
[1732679489261,2.1574,231.84,231.8,9.0186813]
[1732679489864,2.1574,231.84,231.8,6.8609813]
[1732679490559,2.1573,231.86,231.8,9.0186813]
[1732679490758,2.4401,231.91,231.82,6.8609813]
[1732679490965,1.2173,231.91,231.86,6.8609813]
[1732679491160,2.1567,231.91,231.86,6.8609813]
[1732679492757,2.1567,231.91,231.88,6.8609813]
[1732679492965,2.1566,231.93,231.88,6.8609813]
[1732679493461,2.12,231.94,231.88,6.8609813]
[1732679493967,2.1565,231.94,231.88,6.8609813]
[1732679494160,2.6413,231.97,231.92,6.8609813]
[1732679494361,8.9809813,232.0,231.92,6.8609813]
[1732679494563,2.156,231.99,231.94,6.8609813]
[1732679494763,8.9809813,232.0,231.92,6.8609813]
[1732679496370,2.1564,231.95,231.9,6.8609813]
[1732679496565,6.8609813,231.98,231.9,6.8609813]
[1732679497061,2.1563,231.95,231.9,6.8609813]
[1732679498471,6.8609813,231.96,231.88,8.9809813]
[1732679499072,2.1566,231.93,231.88,11.1379813]
[1732679499473,2.1566,231.93,231.88,8.9809813]
[1732679499675,2.1566,231.93,231.88,6.8609813]
[1732679499873,2.1566,231.93,231.88,9.0179813]
[1732679500176,2.1566,231.92,231.88,9.0179813]
[1732679500376,6.8609813,231.98,231.88,9.0179813]
[1732679500578,2.1566,231.92,231.88,6.8609813]
[1732679502471,2.1566,231.92,231.88,9.0179813]
[1732679503273,6.8609813,231.96,231.86,6.8609813]
[1732679503582,8.9809813,231.94,231.86,6.8609813]
[1732679503776,2.12,231.93,231.86,6.8609813]
[1732679505277,2.157,231.88,231.86,6.8609813]
[1732679505483,2.157,231.88,231.84,6.8609813]
[1732679506886,2.12,231.93,231.84,6.8609813]
[1732679507084,8.9809813,231.93,231.84,9.0182813]
[1732679507481,8.9809813,231.93,231.79,4.6687]
[1732679507783,8.9809813,231.93,231.84,6.8609813]
[1732679508084,2.1568,231.91,231.84,6.8609813]
[1732679508284,8.9809813,231.93,231.84,9.0182813]
[1732679508786,2.1567,231.92,231.86,9.0180813]
[1732679508986,2.12,231.94,231.86,9.0180813]
[1732679509679,2.12,231.94,231.79,4.6687]
[1732679509680,6.8609813,231.91,231.79,4.6687]
[1732679509884,6.8609813,231.91,231.83,6.8609813]
[1732679511388,2.157,231.88,231.83,9.0184813]
[1732679513389,2.157,231.88,231.85,6.8609813]
[1732679517488,6.8609813,231.93,231.85,6.8609813]
[1732679517691,2.1571,231.87,231.85,6.8609813]
[1732679522996,6.8609813,231.93,231.85,6.8609813]
[1732679523191,6.8609813,231.91,231.81,6.8609813]
[1732679523495,6.8609813,231.89,231.81,6.8609813]
[1732679523796,2.1574,231.84,231.81,6.8609813]
[1732679524296,2.1573,231.85,231.81,9.0185813]
[1732679524595,2.1573,231.85,231.83,6.8609813]
[1732679524791,1.2161,231.93,231.83,6.8609813]
[1732679524991,2.1568,231.9,231.88,6.8609813]
[1732679525489,2.1567,231.91,231.88,6.8609813]
[1732679530695,2.1566,231.93,231.9,6.8609813]
[1732679531197,2.156,231.99,231.93,2.1565]
[1732679531396,3.3361,232.01,231.94,6.8609813]
[1732679531804,2.1562,231.97,231.94,6.8609813]
[1732679531998,6.8609813,232.0,231.92,6.8609813]
[1732679533997,2.156,231.99,231.92,6.8609813]
[1732679534603,8.9809813,232.01,231.92,6.8609813]
[1732679534803,2.1561,231.98,231.93,2.1565]
[1732679535098,2.589,232.05,231.96,6.8609813]
[1732679535298,2.1557,232.02,231.96,6.8609813]
[1732679535501,6.8609813,232.03,231.96,6.8609813]
[1732679536001,2.1559,232.01,231.96,6.8609813]
[1732679536996,2.1557,232.03,231.98,2.1561]
[1732679537701,8.9809813,232.05,231.96,6.8609813]
[1732679537904,2.1557,232.02,231.98,6.8609813]
[1732679540401,2.1557,232.02,231.98,9.0170813]
[1732679541402,2.12,232.06,231.94,2.12]
[1732679541403,2.1556,232.04,232.0,6.8609813]
[1732679542304,8.9809813,232.06,231.94,2.12]
[1732679542500,6.8609813,232.02,231.94,2.12]
[1732679542698,6.8609813,232.02,231.94,8.9809813]
[1732679542897,2.1559,232.0,231.96,6.8609813]
[1732679543902,2.156,231.99,231.96,6.8609813]
[1732679544106,2.156,231.99,231.94,11.1372813]
[1732679544302,2.156,231.99,231.95,2.1563]
[1732679545101,2.1556,232.03,231.98,9.0169813]
[1732679545307,9.4270813,232.05,231.96,6.8609813]
[1732679546507,2.1558,232.01,231.96,9.0171813]
[1732679547397,9.4270813,232.05,231.96,9.0171813]
[1732679547597,2.1559,232.0,231.96,9.0171813]
[1732679548011,6.8609813,232.03,231.96,6.8609813]
[1732679548210,2.1561,231.99,231.96,6.8609813]
[1732679555809,6.8609813,232.03,231.96,6.8609813]
[1732679556207,2.5661,232.05,232.0,6.8609813]
[1732679556412,2.1556,232.04,232.0,6.8609813]
[1732679556612,2.5661,232.05,232.0,6.8609813]
[1732679556815,2.5661,232.05,231.98,6.8609813]
[1732679557110,2.1558,232.02,231.98,6.8609813]
[1732679557312,9.4270813,232.05,231.9,2.4893]
[1732679557313,6.8609813,232.01,231.9,2.4893]
[1732679557512,6.8609813,232.01,231.93,6.8609813]
[1732679557714,8.9809813,232.01,231.93,6.8609813]
[1732679557912,2.1562,231.97,231.93,9.0173813]
[1732679558915,2.12,232.01,231.95,6.8609813]
[1732679559115,2.12,232.03,231.97,6.8609813]
[1732679559317,2.12,232.03,231.96,2.1562]
[1732679559509,2.12,232.03,231.98,6.8609813]
[1732679560016,2.1559,232.01,231.98,6.8609813]
[1732679560412,2.1559,232.01,231.96,2.1562]
[1732679560613,2.1557,232.02,231.98,6.8609813]
[1732679560811,2.12,232.03,231.98,6.8609813]
[1732679562120,2.5661,232.05,231.98,6.8609813]
[1732679562419,2.1555,232.05,232.0,9.0168813]